[Event "83rd Georgian Championship 2024"]
[Site "Tbilisi"]
[Date "2024.01.30"]
[Round "2.3"]
[White "kiladze, Luka"]
[Black "Sanikidze, Tornike"]
[Result "0-1"]
[ECO "A43"]
[WhiteElo "2179"]
[BlackElo "2449"]
[Annotator "TA"]
[PlyCount "62"]
[EventDate "2024.01.29"]
[EventCountry "GEO"]
[SourceTitle "playchess.com"]
[Source "ChessBase"]
[SourceQuality "1"]
[TimeControl "5400+30"]

{[%evp 19,62,32,36,34,55,53,63,51,52,58,54,62,68,69,49,57,51,18,75,54,47,71,68,0,67,64,71,65,57,0,0,0,0,0,0,0,0,-17,-14,-12,0,0,0,-5273,-5265]} 1. d4 {[%emt 0:00:05]} Nf6 {[%emt 0:00:25]} 2. Nc3 {[%emt 0:00:17]} c5 {[%emt 0:07:12]} 3. d5 {[%emt 0:00:13]} d6 {[%emt 0:00:26]} 4. Nf3 {[%emt 0:00:47][%cal Bg1f3,Bf3d2,Bd2c4][%mdl 32]} g6 {[%emt 0:00:32]} 5. e4 {[%emt 0:00:06]} Bg7 {[%emt 0:00:27]} 6. Nd2 {[%emt 0:01:19]} O-O {[%emt 0:01:14]} 7. Be2 {[%emt 0:00:56]} Na6 {[%emt 0:03:36]} 8. O-O {[%emt 0:02:26]} Nc7 {[%emt 0:00:56]} 9. a4 {[%emt 0:01:37]} b6 {[%emt 0:05:56]} 10. Nc4 {[%emt 0:04:15]} Ba6 {[%emt 0:01:30]} 11. Re1 {[%emt 0:04:30]} Nd7 {[%emt 0:06:46]} 12. Bg5 {[%emt 0:06:41]} Rb8 {[%emt 0:05:17]} 13. f4 {[%emt 0:08:28][%cal Oe4e5] White is slightly better.} (13. Nxd6 Bxe2 14. Qxe2 (14. Rxe2 Bxc3 15. bxc3 f6 $17) 14... f6 $15) 13... Bxc4 {[%emt 0:05:17]} 14. Bxc4 {[%emt 0:00:20]} a6 {[%emt 0:00:03] [#] Against Nb5. Black is weak on the light squares} 15. e5 $1 {[%emt 0:04:44] Hoping for exd6.} f6 $1 {[%emt 0:04:25]} 16. exd6 {[%emt 0:02:20]} exd6 {[%emt 0:00:10]} 17. Bh4 {[%emt 0:00:03]} b5 {[%emt 0:00:07]} 18. Be2 {[%emt 0:03:20] Threatening axb5.} Qc8 {[%emt 0:05:49]} (18... bxa4 $11 19. Ne4 (19. Rxa4 Rxb2 20. Qd2 Nb6 $15) (19. Nxa4 Bh6 $14) 19... Rb4 20. Nxd6 Rxf4) 19. Ne4 $16 {[%emt 0:05:23]} Ne8 {[%emt 0:00:17]} 20. axb5 {[%emt 0:03:30]} axb5 {[%emt 0:00:42]} 21. c3 {[%emt 0:01:41]} (21. Ra7 $14) 21... b4 {[%emt 0:10:07]} (21... Bh6 $11) 22. Ra7 {[%emt 0:05:00]} (22. Qd2 {simplifies} Rb6 23. g4 bxc3 24. bxc3 Qb7 25. Qd3) 22... bxc3 {[%emt 0:05:45]} 23. bxc3 {[%emt 0:01:39]} c4 $1 {[%emt 0:04:38] [#]} 24. Bxc4 {[%emt 0:15:01]} Qxc4 $11 {[%emt 0:01:20]} 25. Rxd7 {[%emt 0:00:04][%cal Od1e2]} f5 {[%emt 0:06:51][%csl LRc3,LRe4]} 26. Rxg7+ {[%emt 0:11:51]} Kxg7 {[%emt 0:01:58]} 27. Ng5 {[%emt 0:00:02]} Nc7 {[%emt 0:05:26][%cal Of8e8] Strongly threatening ...Rfe8!} 28. Ne6+ {[%emt 0:04:06]} Nxe6 {[%emt 0:09:17]} 29. dxe6 {[%emt 0:00:12]} Qc6 {[%emt 0:05:54][%cal Og7g8]} (29... Qxf4 $2 {too greedy.} 30. Bg3 Qc4 31. Qxd6 $18 (31. Bxd6 Rfd8 $16)) 30. Qd4+ {[%emt 0:04:34]} Kg8 {[%emt 0:00:02]} 31. Be7 $2 {[%emt 0:01:27][%mdl 8192] [#]} (31. Bf2 $11) 31... Rb2 $1 {[%emt 0:00:15] Weighted Error Value: White=0.47/Black=0.12 (very precise) .  Loses game:     	White=1     	---        Mistake:       	White=2     	Black=2      Inaccurate:     	White=1     	---        OK:         	White=9     	Black=5      Best:        	---       	Black=3      Strong:       	---       	Black=3} 0-1

[Event "83rd Georgian Championship 2024"]
[Site "Tbilisi"]
[Date "2024.01.30"]
[Round "2.4"]
[White "Jobava, Baadur"]
[Black "Tsomaia, Nikoloz"]
[Result "1-0"]
[ECO "C54"]
[WhiteElo "2591"]
[BlackElo "2231"]
[Annotator "TA"]
[PlyCount "94"]
[EventDate "2024.01.29"]
[EventCountry "GEO"]
[SourceTitle "playchess.com"]
[Source "ChessBase"]
[SourceQuality "1"]
[TimeControl "5400+30"]

{[%evp 11,94,0,0,-6,-5,0,0,-33,-38,-26,-37,-33,31,41,34,33,44,38,42,53,95,78,87,48,59,65,50,52,42,60,58,51,78,77,83,46,42,43,49,43,84,43,48,39,33,21,43,46,45,10,8,11,29,28,21,0,208,59,59,59,59,81,89,120,120,120,120,0,120,119,121,87,87,36,29965,29963,29968,29965,29967,29963,29968,29972,29969,29973,5089]} 1. e4 {[%emt 0:00:44]} e5 {[%emt 0:00:09]} 2. Nf3 {[%emt 0:00:13]} Nc6 {[%emt 0:00:06]} 3. Bc4 {[%emt 0:00:17]} Bc5 {[%emt 0:01:16]} 4. c3 {[%emt 0:00:23]} Nf6 {[%emt 0:00:16]} 5. b4 {[%emt 0:00:14]} Be7 {[%emt 0:06:24]} 6. d3 {[%emt 0:00:13]} O-O {[%emt 0:01:23]} 7. O-O {[%emt 0:00:10]} d5 {[%emt 0:00:49]} 8. exd5 {[%emt 0:00:13]} Nxd5 {[%emt 0:00:10]} 9. b5 {[%emt 0:00:42] The position is equal.} Na5 {[%emt 0:00:25]} 10. Bxd5 {[%emt 0:00:11]} Qxd5 {[%emt 0:00:05]} 11. c4 {[%emt 0:00:11]} Qd8 {[%emt 0:13:42]} (11... Qd7 $15) 12. Bd2 $1 $36 {[%emt 0:00:44][%mdl 2048] White has the initiative.} e4 {[%emt 0:00:38]} 13. Bxa5 {[%emt 0:00:07]} exf3 {[%emt 0:00:07]} 14. Qxf3 {[%emt 0:00:07]} a6 {[%emt 0:00:13]} 15. a4 {[%emt 0:00:52]} Bf6 {[%emt 0:16:11]} 16. Bc3 {[%emt 0:03:29]} axb5 {[%emt 0:04:47]} 17. Bxf6 {[%emt 0:04:18]} Qxf6 {[%emt 0:03:40]} 18. Qxf6 {[%emt 0:00:17]} gxf6 {[%emt 0:00:05]} 19. cxb5 {[%emt 0:00:05]} Rd8 {[%emt 0:03:29]} 20. Rd1 {[%emt 0:00:24]} Bf5 {[%emt 0:01:45]} 21. Nc3 {[%emt 0:01:21]} Rxd3 {[%emt 0:01:20]} 22. Rxd3 {[%emt 0:00:16]} Bxd3 {[%emt 0:00:05][%mdl 4096] Endgame. KRB-KRN} 23. f3 {[%emt 0:00:19]} b6 {[%emt 0:11:59]} 24. Rd1 {[%emt 0:08:19]} Bc4 {[%emt 0:04:56]} 25. Kf2 {[%emt 0:01:07]} Bb3 {[%emt 0:01:11]} 26. Rd4 {[%emt 0:00:55]} Kf8 {[%emt 0:00:32]} 27. Kg3 {[%emt 0:01:39]} Ke7 {[%emt 0:02:05]} 28. Kh4 {[%emt 0:00:30]} Rg8 {[%emt 0:06:30]} 29. g4 {[%emt 0:00:38]} Rg5 {[%emt 0:01:05] Against Nd5+} 30. f4 {[%emt 0:17:28]} Rc5 {[%emt 0:01:08]} 31. Ne4 {[%emt 0:05:07]} Rc4 {[%emt 0:07:54]} 32. Rxc4 {[%emt 0:00:07]} Bxc4 $11 {[%emt 0:00:01] KB-KN} 33. Kh5 {[%emt 0:01:01]} Be2 $2 {[%emt 0:00:17]} (33... f5 $1 $11 {and Black is okay.} 34. gxf5 Bd3 35. f6+ Ke6) 34. Nc3 $1 $18 {[%emt 0:06:11]} Bf3 {[%emt 0:01:15]} 35. Kh6 {[%emt 0:01:02] h3 is the strong threat.} Bxg4 {[%emt 0:03:15]} 36. Nd5+ {[%emt 0:00:28]} (36. Kxh7 Kf8 $15) 36... Kf8 {[%emt 0:03:32]} 37. Kxh7 {[%emt 0:03:24] White is more active.} Bd1 {[%emt 0:00:58]} 38. Nxc7 {[%emt 0:03:30]} (38. Nxf6 Bxa4 39. Nd5 Bxb5 $11) 38... Bxa4 {[%emt 0:00:07]} 39. h4 {[%emt 0:00:47]} (39. Kh8 $16) 39... Bd1 {[%emt 0:01:33]} (39... Bc2+ $11 40. Kh6 Be4) 40. Nd5 {[%emt 0:00:36][%csl LRb6,LRf6]} Be2 {[%emt 0:00:54]} 41. Nxb6 {[%emt 0:02:22] Threatens to win with Nd5.} (41. Nxf6 Bxb5 42. Kh8 Bc6 43. Nh7+ Ke7 $11) 41... Bxb5 {[%emt 0:00:05]} 42. h5 {[%emt 0:00:44]} (42. Nd5 $1 $16 {[%cal Oh7h8] Kh8! would kill now.} Bd3+ 43. Kh6) 42... Bd3+ $2 {[%emt 0:02:39][%mdl 8192] This move loses the game for Black.} (42... Bc6 $14) 43. Kh8 {[%emt 0:00:07] White mates.} Be4 {[%emt 0:02:10] [#]} 44. Nd7+ $1 {[%emt 0:03:00]} Ke7 {[%emt 0:00:01] [#]} 45. Nc5 $1 {[%emt 0:00:10]} Bc2 {[%emt 0:00:23]} 46. Kg7 {[%emt 0:00:43]} Kd6 {[%emt 0:01:23]} 47. Kxf6 {[%emt 0:38:15]} Kd5 {[%emt 0:01:02] Weighted Error Value: White=0.11 (very precise) /Black=0.32.  Loses game:     	---       	Black=2      Mistake:       	White=2     	Black=2      Inaccurate:     	White=5     	Black=3      OK:         	White=14    	Black=17     Best:        	White=2     	Black=3      Strong:       	White=2     	---} 1-0

[Event "83rd Georgian Championship 2024"]
[Site "Tbilisi"]
[Date "2024.01.30"]
[Round "2.5"]
[White "Paichadze, Luka"]
[Black "Mchedlishvili, Mikheil"]
[Result "1/2-1/2"]
[ECO "C01"]
[WhiteElo "2503"]
[BlackElo "2569"]
[Annotator "TA"]
[PlyCount "24"]
[EventDate "2024.01.29"]
[EventCountry "GEO"]
[SourceTitle "playchess.com"]
[Source "ChessBase"]
[SourceQuality "1"]
[TimeControl "5400+30"]

{[%evp 17,24,-7,16,0,0,0,4,0,23]} 1. e4 {[%emt 0:00:19]} e5 {[%emt 0:01:20]} 2. Nf3 {[%emt 0:00:08]} Nf6 {[%emt 0:00:22]} 3. Nxe5 {[%emt 0:00:13]} d6 {[%emt 0:00:18]} 4. Nf3 {[%emt 0:00:07]} Nxe4 {[%emt 0:00:09]} 5. d3 {[%emt 0:00:31]} Nf6 {[%emt 0:00:25]} 6. d4 {[%emt 0:00:06]} d5 {[%emt 0:00:09]} 7. Bd3 {[%emt 0:00:05]} Bd6 {[%emt 0:00:23]} 8. O-O {[%emt 0:00:11]} O-O {[%emt 0:00:16]} 9. h3 {[%emt 0:00:04]} h6 {[%emt 0:00:55] The position is equal.} 10. c3 {[%emt 0:00:04]} Re8 {[%emt 0:00:22]} 11. Re1 {[%emt 0:00:06]} Rxe1+ {[%emt 0:00:13]} 12. Qxe1 {[%emt 0:00:05]} c6 {[%emt 0:00:33] An uneventful encounter.   Weighted Error Value: White=0.08 (flawless) /Black=0.07 (flawless) .  OK:         	White=1     	Black=2} 1/2-1/2

[Event "83rd Georgian Championship 2024"]
[Site "Tbilisi"]
[Date "2024.01.31"]
[Round "3.1"]
[White "Mchedlishvili, Mikheil"]
[Black "Kacharava, Nikolozi"]
[Result "1/2-1/2"]
[ECO "B22"]
[WhiteElo "2569"]
[BlackElo "2523"]
[Annotator "TA"]
[PlyCount "34"]
[EventDate "2024.01.29"]
[EventCountry "GEO"]
[SourceTitle "playchess.com"]
[Source "ChessBase"]
[SourceQuality "1"]
[TimeControl "5400+30"]

{[%evp 13,34,7,12,30,25,16,12,5,17,0,0,0,2,6,0,0,15,0,0,0,14,0,0]} 1. e4 {[%emt 0:00:05]} c5 {[%emt 0:00:22]} 2. c3 {[%emt 0:00:50]} d5 {[%emt 0:01:09]} 3. exd5 {[%emt 0:00:41]} Qxd5 {[%emt 0:00:18]} 4. d4 {[%emt 0:01:21]} Nf6 {[%emt 0:00:51]} 5. Nf3 {[%emt 0:01:32]} e6 {[%emt 0:02:23]} 6. Na3 {[%emt 0:01:19]} a6 {[%emt 0:01:28]} 7. Nc4 {[%emt 0:01:13]} Nbd7 {[%emt 0:00:56]} 8. a4 {[%emt 0:02:20]} cxd4 {[%emt 0:05:53]} 9. Qxd4 {[%emt 0:00:24]} Bc5 {[%emt 0:00:55] The position is equal.} 10. Qxd5 {[%emt 0:00:46]} (10. Qh4 {looks sharper.} O-O 11. Be2 b5 12. Ne3) 10... Nxd5 {[%emt 0:00:47]} 11. Be2 {[%emt 0:00:38]} b6 {[%emt 0:00:57]} 12. O-O {[%emt 0:00:29]} O-O {[%emt 0:00:30]} 13. Nce5 {[%emt 0:00:30]} Rd8 {[%emt 0:01:37]} 14. Nc6 {[%emt 0:00:53]} Re8 {[%emt 0:00:17]} 15. Nce5 {[%emt 0:00:32]} Rd8 {[%emt 0:00:56]} 16. Nc6 {[%emt 0:00:19]} Re8 {[%emt 0:00:09]} 17. Nce5 {[%emt 0:00:07]} Rd8 {[%emt 0:00:08] A rather calm draw.   Weighted Error Value: White=0.06 (flawless) /Black=0.00 (flawless) .  OK:         	White=1     	Black=8} 1/2-1/2

[Event "83rd Georgian Championship 2024"]
[Site "Tbilisi"]
[Date "2024.01.31"]
[Round "3.2"]
[White "Tsomaia, Nikoloz"]
[Black "Paichadze, Luka"]
[Result "0-1"]
[ECO "B13"]
[WhiteElo "2231"]
[BlackElo "2503"]
[Annotator "TA"]
[PlyCount "132"]
[EventDate "2024.01.29"]
[EventCountry "GEO"]
[SourceTitle "playchess.com"]
[Source "ChessBase"]
[SourceQuality "1"]
[TimeControl "5400+30"]

{[%evp 20,132,54,63,38,24,26,34,32,10,18,0,-2,-4,-1,-5,-5,-3,-7,-24,-16,-28,-2,-21,-11,-30,-26,-41,-24,-39,-44,-53,-46,-59,-60,-73,-78,-74,-74,-76,-72,-68,-71,-71,-77,-73,-77,-88,-53,-53,-51,-78,-76,-96,-79,-79,-81,-79,-86,-83,-95,-101,-101,-101,-101,-101,-101,-101,-101,-256,-244,-248,-210,-257,-257,-1168,-454,-2454,-3112,-2970,-1515,-5452,-6436,-5539,-5539,-29963,-29964,-29964,-29966,-29965,-29965,-29967,-29968,-29965,-29967,-29968,-29967,-29969,-29969,-29968,-29968,-29969,-29969,-29968,-29970,-29967,-29969,-29969,-29971,-29972,-29973,-29973,-29974,-29973,-29971]} 1. e4 {[%emt 0:00:07]} c6 {[%emt 0:00:13]} 2. d4 {[%emt 0:00:04]} d5 {[%emt 0:00:04]} 3. exd5 {[%emt 0:00:03]} cxd5 {[%emt 0:00:05]} 4. Bd3 {[%emt 0:00:03]} Nc6 {[%emt 0:00:13]} 5. c3 {[%emt 0:00:06]} e6 {[%emt 0:00:13]} 6. Nf3 {[%emt 0:03:03] B13: Caro-Kann: Exchange Variation and Panov-Botvinnik Attack.} Bd6 {[%emt 0:00:10]} 7. O-O {[%emt 0:00:07]} Nge7 {[%emt 0:00:25]} 8. Re1 {[%emt 0:00:21]} O-O {[%emt 0:01:04]} 9. b3 {[%emt 0:01:56]} f6 {[%emt 0:04:46]} 10. c4 {[%emt 0:31:38]} Nf5 {[%emt 0:02:30]} 11. Bxf5 $146 {[%emt 0:11:08]} ({Predecessor:} 11. Bb2 Kh8 12. Nbd2 Bc7 13. Nf1 Nce7 14. Ng3 Nh6 15. Qc2 g6 16. Re2 Bd6 17. a3 {1-0 Rodriguez Redondo,A (2057)-Luque Saiz,A (2286) Benidorm Bali op-A 2022 (3)}) 11... exf5 {[%emt 0:00:08]} 12. Nc3 {[%emt 0:10:32]} (12. cxd5 Ne7 $11) 12... Bb4 {[%emt 0:01:41]} 13. Bb2 {[%emt 0:00:11]} (13. Bd2 {simplifies} Bxc3 14. Bxc3 Re8 15. Rxe8+ Qxe8 16. Ne1) 13... f4 {[%emt 0:08:07]} 14. Qd3 {[%emt 0:06:00]} Bg4 {[%emt 0:05:56]} 15. Nd2 {[%emt 0:02:36]} (15. cxd5 Bxc3 16. Bxc3 Qxd5 $16) 15... Bxc3 {[%emt 0:03:46]} 16. Bxc3 {[%emt 0:01:11]} (16. Qxc3 {simplifies} Bh5 17. Qh3 Bg6 18. Nf3) 16... Qd7 {[%emt 0:01:07]} 17. cxd5 {[%emt 0:01:08]} Qxd5 {[%emt 0:00:09]} 18. Qe4 {[%emt 0:00:43]} Qxe4 {[%emt 0:07:23]} 19. Nxe4 {[%emt 0:09:54]} Rad8 {[%emt 0:02:15]} 20. f3 {[%emt 0:01:12]} Bc8 {[%emt 0:02:42]} 21. Rad1 {[%emt 0:02:01]} Rd5 {[%emt 0:01:27]} 22. Rd2 {[%emt 0:03:59]} Rfd8 {[%emt 0:07:52]} 23. Red1 {[%emt 0:01:43]} b6 {[%emt 0:02:28]} 24. Bb2 {[%emt 0:00:30]} Bb7 {[%emt 0:00:23]} 25. Kf2 {[%emt 0:05:24]} Kf7 {[%emt 0:09:06]} 26. Ba3 {[%emt 0:06:15]} h6 {[%emt 0:07:00]} (26... Rxd4 27. Nd6+ R4xd6 28. Rxd6 Rxd6 29. Bxd6 $18 (29. Rxd6 Ke8 $18)) 27. Nc3 {[%emt 0:00:19]} Rxd4 {[%emt 0:00:39]} 28. Rxd4 {[%emt 0:00:08]} Rxd4 {[%emt 0:00:09]} (28... Nxd4 $6 29. Nb5 (29. Ne2 Ne6 $14) 29... Nc6 (29... Nxb5 $2 30. Rxd8 Ke6 31. Bf8 $18) 30. Rxd8 Nxd8 31. Nxa7 $11) 29. Rxd4 {[%emt 0:00:22]} Nxd4 {[%emt 0:00:05]} 30. Ne2 {[%emt 0:00:10]} Nc2 {[%emt 0:10:18]} 31. Bd6 {[%emt 0:00:24]} g5 {[%emt 0:00:06]} 32. Bb8 {[%emt 0:00:39]} a6 {[%emt 0:00:13]} 33. Ba7 {[%emt 0:01:33]} b5 {[%emt 0:05:02]} 34. Bc5 {[%emt 0:00:08]} Ke6 {[%emt 0:01:39]} 35. h4 {[%emt 0:01:09]} h5 {[%emt 0:00:57]} (35... gxh4 $6 36. Nxf4+ Kf5 37. Nd3 $14) 36. a4 {[%emt 0:01:10]} Ke5 {[%emt 0:05:51]} (36... gxh4 $6 37. axb5 (37. Nxf4+ Kf5 $16) 37... axb5 38. Nxf4+ Kf5 39. Nxh5 $11) 37. axb5 {[%emt 0:00:05]} axb5 {[%emt 0:00:03]} ({Much weaker is} 37... gxh4 $6 38. bxa6 Bxa6 39. Ng1 $11) 38. Be7 {[%emt 0:00:29]} gxh4 {[%emt 0:00:59]} 39. Bd8 {[%emt 0:00:22]} Bd5 {[%emt 0:01:46]} 40. Bc7+ {[%emt 0:00:16]} Kf5 {[%emt 0:00:06]} 41. Nc3 {[%emt 0:01:01]} Bc6 {[%emt 0:00:33]} ({But not} 41... Bxb3 $6 42. Nxb5 Bd5 43. Nc3 $11) 42. Ne2 {[%emt 0:00:06]} Be8 {[%emt 0:00:44]} 43. Bxf4 {[%emt 0:00:53]} Bf7 {[%emt 0:00:14]} 44. b4 $2 {[%emt 0:00:32]} (44. Bd2 $17) 44... Nxb4 $19 {[%emt 0:00:15]} 45. Bd2 {[%emt 0:00:42]} Nc6 {[%emt 0:00:24]} (45... Nd3+ 46. Ke3 Bc4 47. Nd4+ Kg6 48. Nc2 $17) 46. Ke3 {[%emt 0:00:13]} b4 {[%emt 0:04:37]} 47. Nd4+ $2 {[%emt 0:00:34]} (47. Kd3) 47... Nxd4 $19 {[%emt 0:00:07]} 48. Kxd4 {[%emt 0:00:01]} b3 {[%emt 0:00:07]} 49. Bc1 {[%emt 0:00:04]} Be6 {[%emt 0:00:13]} 50. Ke3 {[%emt 0:00:29]} Kg6 {[%emt 0:00:54]} 51. Kf2 {[%emt 0:01:02]} h3 {[%emt 0:00:22]} 52. gxh3 {[%emt 0:01:08]} Bxh3 {[%emt 0:00:17]} 53. Kg3 {[%emt 0:00:13]} Be6 {[%emt 0:00:09]} 54. Bb2 {[%emt 0:00:44]} Kg5 {[%emt 0:00:37]} 55. Bc1+ {[%emt 0:00:15] [#]} Kf5 $1 {[%emt 0:00:13]} 56. Bb2 {[%emt 0:00:37]} Bf7 {[%emt 0:00:09]} 57. Bc3 {[%emt 0:00:23]} Ke6 {[%emt 0:00:28]} 58. Kf4 {[%emt 0:00:42]} Bg6 {[%emt 0:00:07]} 59. Bb2 {[%emt 0:00:09]} Bf5 {[%emt 0:02:10]} 60. Kg3 {[%emt 0:00:13]} Bc2 {[%emt 0:00:57]} 61. Kh4 {[%emt 0:00:39]} Bg6 {[%emt 0:00:11]} 62. Kg3 {[%emt 0:01:04]} Kd5 {[%emt 0:01:44]} 63. Bxf6 {[%emt 0:00:12]} Kc4 {[%emt 0:00:04]} 64. Kh4 {[%emt 0:00:54]} Kd3 {[%emt 0:00:07]} 65. f4 {[%emt 0:00:24]} Kc2 {[%emt 0:00:10]} 66. f5 {[%emt 0:00:19]} Be8 {[%emt 0:00:06]} ({Weaker is} 66... Bxf5 67. Kxh5 Kd3 68. Kh4 $11) 0-1

[Event "83rd Georgian Championship 2024"]
[Site "Tbilisi"]
[Date "2024.01.31"]
[Round "3.3"]
[White "Sanikidze, Tornike"]
[Black "Jobava, Baadur"]
[Result "1/2-1/2"]
[ECO "D13"]
[WhiteElo "2449"]
[BlackElo "2591"]
[Annotator "TA"]
[PlyCount "21"]
[EventDate "2024.01.29"]
[EventCountry "GEO"]
[SourceTitle "playchess.com"]
[Source "ChessBase"]
[SourceQuality "1"]
[TimeControl "5400+30"]

{[%evp 16,21,28,20,25,29,33,29]} 1. d4 {[%emt 0:00:03]} d5 {[%emt 0:02:33]} 2. c4 {[%emt 0:00:16]} c6 {[%emt 0:00:07]} 3. Nf3 {[%emt 0:00:13]} Nf6 {[%emt 0:00:07]} 4. cxd5 {[%emt 0:00:49]} cxd5 {[%emt 0:00:08]} 5. Nc3 {[%emt 0:00:11]} Nc6 {[%emt 0:00:13]} 6. Bf4 {[%emt 0:00:07]} e6 {[%emt 0:00:08]} 7. e3 {[%emt 0:00:47]} Bd6 {[%emt 0:00:12]} 8. Bxd6 {[%emt 0:01:23]} Qxd6 {[%emt 0:00:09]} 9. Bd3 {[%emt 0:00:11]} Bd7 {[%emt 0:00:19]} 10. O-O {[%emt 0:00:45]} O-O {[%emt 0:00:09]} 11. Rc1 {[%emt 0:04:16]} 1/2-1/2

[Event "83rd Georgian Championship 2024"]
[Site "Tbilisi"]
[Date "2024.01.31"]
[Round "3.4"]
[White "Quparadze, Giga"]
[Black "kiladze, Luka"]
[Result "1-0"]
[ECO "B30"]
[WhiteElo "2491"]
[BlackElo "2179"]
[Annotator "TA"]
[PlyCount "105"]
[EventDate "2024.01.29"]
[EventCountry "GEO"]
[SourceTitle "playchess.com"]
[Source "ChessBase"]
[SourceQuality "1"]
[TimeControl "5400+30"]

{[%evp 9,105,7,14,18,41,42,60,47,56,56,66,68,87,60,83,52,49,40,44,40,48,10,23,12,23,20,13,9,28,-45,-33,-44,-55,-35,0,0,0,0,0,0,0,0,0,0,0,-7,-6,-6,0,-16,12,0,0,0,0,0,3,0,50,0,0,0,0,0,0,0,0,0,0,0,0,0,0,0,7,21,224,258,295,295,326,313,325,320,331,338,343,306,9325,9136,6609,5691,29953,29957,29972,29975,29982,29982]} 1. e4 {[%emt 0:00:01]} c5 {[%emt 0:00:08]} 2. Nf3 {[%emt 0:00:04]} Nc6 {[%emt 0:00:03]} 3. Bb5 {[%emt 0:00:05]} e6 {[%emt 0:00:03]} 4. Bxc6 {[%emt 0:00:06]} bxc6 {[%emt 0:00:08]} 5. d3 {[%emt 0:00:04]} Ne7 {[%emt 0:04:47]} 6. Nbd2 {[%emt 0:00:05]} Ng6 {[%emt 0:01:56]} 7. h4 $1 {[%emt 0:00:07]} h5 {[%emt 0:01:35]} 8. e5 {[%emt 0:00:06] White is slightly better.} f6 {[%emt 0:03:45]} 9. Qe2 {[%emt 0:00:12]} d5 {[%emt 0:09:27]} 10. exd6 {[%emt 0:01:08]} Bxd6 {[%emt 0:00:51]} 11. Nc4 {[%emt 0:00:05]} e5 {[%emt 0:01:48]} 12. Qe4 {[%emt 0:01:29] White is more active.} Ne7 {[%emt 0:00:15]} 13. Nfd2 {[%emt 0:00:04]} Be6 {[%emt 0:05:16]} 14. Qe2 {[%emt 0:00:18]} Nf5 {[%emt 0:04:18]} 15. Ne4 {[%emt 0:00:06]} Be7 {[%emt 0:00:33]} 16. c3 {[%emt 0:00:13]} O-O {[%emt 0:03:34]} 17. Bd2 {[%emt 0:01:20]} Rb8 {[%emt 0:01:47]} 18. O-O-O {[%emt 0:00:37]} Qd5 {[%emt 0:03:00] Inhibits f3.} 19. Kb1 {[%emt 0:01:10]} (19. f3 $11) 19... Nd6 $15 {[%emt 0:02:28]} 20. Nexd6 {[%emt 0:00:06]} Bxd6 {[%emt 0:00:03]} 21. Bc1 {[%emt 0:00:06]} Be7 {[%emt 0:02:58]} (21... Bf7 {simplifies} 22. Nxd6 Qxd6 23. Ka1 Rfd8) 22. Qxh5 {[%emt 0:00:36]} e4 {[%emt 0:01:53]} 23. Qxd5 {[%emt 0:00:34]} cxd5 {[%emt 0:00:43]} 24. Ne3 {[%emt 0:00:04]} d4 25. cxd4 {[%emt 0:00:06]} cxd4 {[%emt 0:04:15]} 26. Nc2 {[%emt 0:00:02][%cal Be3c2,Bc2e1,Be1d3][%mdl 32]} Bg4 {[%emt 0:01:13] This pair of bishops is nice.} 27. dxe4 {[%emt 0:01:59] [#] Strongly threatening f3.} Bxd1 {[%emt 0:00:39]} 28. Rxd1 {[%emt 0:00:05]} Bc5 {[%emt 0:02:33]} 29. Ne1 {[%emt 0:00:39]} (29. Nxd4 $2 Rfd8 30. Be3 Rd7 $19) 29... Rfe8 {[%emt 0:02:08][%mdl 1024] Black has compensation.} 30. Nd3 {[%emt 0:00:43]} Bd6 {[%emt 0:00:28]} 31. f3 {[%emt 0:00:06]} Rb5 {[%emt 0:03:44]} 32. g4 {[%emt 0:00:08] Prevents Rh5.} g6 {[%emt 0:02:41]} 33. Bf4 {[%emt 0:01:17]} Bb8 {[%emt 0:04:01]} ({Black should try} 33... Bxf4 $11 34. Nxf4 f5 35. gxf5 (35. Nxg6 $2 fxe4 36. fxe4 Rxe4 $19) 35... gxf5) 34. Rc1 {[%emt 0:01:04]} (34. Bxb8 $14 Rexb8 35. Rc1) 34... Kf7 $11 {[%emt 0:02:22]} 35. Rc4 {[%emt 0:03:52]} Rh8 {[%emt 0:07:26]} 36. Rxd4 {[%emt 0:00:07]} Rxh4 {[%emt 0:01:16]} 37. a4 {[%emt 0:00:05]} Rb7 {[%emt 0:02:15]} 38. Bxb8 {[%emt 0:02:25]} Rxb8 {[%emt 0:00:04][%mdl 4096] Endgame. KRR-KRN} 39. Rd7+ {[%emt 0:00:05]} Ke8 {[%emt 0:02:08]} 40. Rxa7 {[%emt 0:00:06]} Rh3 {[%emt 0:00:07]} 41. Rg7 {[%emt 0:01:53] Hoping for Rg8+.} Rd8 {[%emt 0:03:31]} 42. Nc5 {[%emt 0:01:34]} Rxf3 $2 {[%emt 0:01:04] [#] Black cannot hold the game after this.} (42... Rd4 $1 $11 {and Black has nothing to worry.}) 43. a5 $1 $18 {[%emt 0:00:06][%cal Ba4a5,Ba5a6][%mdl 32] Threatens to win with Rg8+.} (43. Rxg6 Rd4 $11) 43... Rd1+ {[%emt 0:01:47]} 44. Ka2 {[%emt 0:00:30][%cal Oa5a6]} Rff1 {[%emt 0:02:03]} 45. a6 {[%emt 0:00:31]} (45. Rxg6 Kf7 46. Rh6 Ra1+ 47. Kb3 Rxa5 $15) 45... Ra1+ {[%emt 0:00:31]} 46. Kb3 {[%emt 0:00:06][%cal Oa6a7] aiming for a7!} Ra5 {[%emt 0:00:57]} 47. Kb4 {[%emt 0:00:11]} Rfa1 {[%emt 0:00:27]} 48. g5 {[%emt 0:00:29]} ({But not} 48. Rxg6 Rxc5 49. Kxc5 Kf7) 48... Rxc5 $2 {[%emt 0:03:14]} (48... f5 49. exf5 (49. Rxg6 fxe4 50. b3 Kf7 $18) 49... gxf5) 49. Kxc5 {[%emt 0:00:11] Intending a7 and mate.} Rxa6 {[%emt 0:00:07]} 50. b4 {[%emt 0:00:28][%cal Bb2b4,Bb4b5,Bb5b6][%mdl 32] White threatens b5 and mate.} (50. Rxg6 Ra5+ 51. Kb6 Re5 52. Rxf6 Ke7 $18) 50... fxg5 {[%emt 0:00:24]} 51. b5 {[%emt 0:00:04] White mates.} Ra1 {[%emt 0:01:39]} 52. b6 {[%emt 0:00:41]} Kd8 {[%emt 0:00:51]} 53. Rg8+ {[%emt 0:00:06] Weighted Error Value: White=0.07 (flawless) /Black=0.29 (precise) .  Loses game:     	---       	Black=1      Mistake:       	White=2     	Black=2      Inaccurate:     	White=2     	Black=2      OK:         	White=18    	Black=22     Best:        	White=3     	Black=2      Strong:       	White=2     	---} 1-0